bitfinex/quotes_ETHUSD_20251015
["timestamp","ask_amount","ask_price","bid_price","bid_amount"]
[1760567986240,0.1389,3981.9,3981.6,0.002]
[1760567986539,22.727893,3981.8,3981.6,0.002]
[1760567986759,2.59915626,3981.8,3981.6,0.002]
[1760567986959,1.728,3981.7,3981.6,0.002]
[1760567990775,1.728,3981.8,3981.6,0.002]
[1760567991072,11.728,3981.9,3981.6,0.002]
[1760567991563,6.4,3982.1,3981.8,2.51138413]
[1760567991774,6.4,3982.1,3981.9,2.51136313]
[1760567992068,22.727893,3981.9,3981.6,0.002]
[1760567992236,22.866393,3981.7,3981.6,0.002]
[1760567993965,25.47728306,3981.7,3981.6,0.002]
[1760567994331,25.37788306,3981.7,3981.6,0.002]
[1760567994576,27.87803932,3981.7,3981.6,0.002]
[1760567995140,19.10365626,3981.7,3981.6,0.002]
[1760567995967,25.36654926,3981.7,3981.6,0.002]
[1760567997474,27.87803932,3981.7,3981.6,0.002]
[1760567998070,25.36654926,3981.7,3981.6,0.002]
[1760567998370,25.22804926,3981.7,3981.6,0.002]
[1760568001063,1.728,3981.9,3981.6,0.002]
[1760568001238,22.066,3981.8,3981.6,0.002]
[1760568001438,21.142,3981.8,3981.6,0.002]
[1760568002084,9.563,3981.8,3981.6,0.002]
[1760568002455,17.394,3981.8,3981.6,0.002]
[1760568002748,16.4,3981.7,3981.6,2.51349457]
[1760568002947,6.4,3981.7,3981.6,2.51349457]
[1760568003769,8.905,3981.7,3981.6,0.002]
[1760568003973,8.905,3981.7,3981.6,0.4457]
[1760568004369,8.905,3981.7,3981.6,2.51355314]
[1760568004570,6.4,3981.7,3981.6,3.46017631]
[1760568005287,6.4,3981.7,3981.6,2.95725314]
[1760568005762,6.4,3981.7,3981.6,0.002]
[1760568005966,6.4,3981.7,3981.6,2.51355314]
[1760568006183,6.4,3981.7,3981.6,2.95725314]
[1760568007785,22.727893,3982.1,3981.6,0.002]
[1760568007955,22.727893,3981.9,3981.6,0.002]
[1760568008356,22.866793,3981.7,3981.6,0.002]
[1760568008568,26.01188306,3981.7,3981.6,0.002]
[1760568008765,31.65676606,3981.7,3981.6,0.002]
[1760568008966,34.02304111,3981.7,3981.6,0.002]
[1760568010691,33.92404111,3981.7,3981.6,0.002]
[1760568010886,34.02304111,3981.7,3981.6,0.002]
[1760568014287,7.54,3981.7,3981.6,0.002]
[1760568014489,9.001,3981.7,3981.6,0.002]
[1760568014692,6.918,3981.7,3981.6,0.002]
[1760568015093,13.318,3981.7,3981.6,0.002]
[1760568015274,6.4,3981.7,3981.6,2.95725314]
[1760568015589,6.4,3981.7,3981.6,3.50454512]
[1760568015957,6.4,3982.3,3982.2,2.51117472]
[1760568016163,6.401,3982.4,3982.3,2.51111166]
[1760568016362,6.401,3982.4,3982.3,2.97992277]
[1760568016768,0.001,3982.4,3982.3,2.95481166]
[1760568016969,0.001,3982.4,3982.3,3.5246703]
[1760568017181,0.001,3982.4,3982.3,3.54978141]
[1760568017376,0.001,3982.4,3982.3,3.5246703]
[1760568017916,0.001,3982.4,3982.3,3.54978141]
[1760568018500,0.001,3982.4,3982.3,6.22358141]
[1760568018701,0.001,3982.4,3982.3,6.1984703]
[1760568019295,0.001,3982.4,3982.3,6.3232703]
[1760568020404,0.001,3982.4,3982.3,7.9264703]
[1760568020710,0.001,3982.4,3982.3,8.5600703]
[1760568023108,0.001,3982.4,3982.3,6.0110703]
[1760568023310,0.001,3982.4,3982.3,8.5590703]
[1760568023707,0.001,3982.4,3982.3,7.9254703]
[1760568025588,0.001,3982.4,3982.3,5.3774703]
[1760568025789,0.001,3982.4,3982.3,7.9254703]
[1760568026190,0.001,3982.4,3982.3,7.8006703]
[1760568028716,0.001,3982.4,3982.3,7.90125836]
[1760568030438,0.001,3982.4,3982.3,8.02605836]
[1760568036504,0.001,3982.4,3982.3,8.02805836]
[1760568036704,0.001,3982.4,3982.3,4.36591166]
[1760568037036,0.001,3982.4,3982.3,2.51311166]
[1760568037204,0.1012,3982.4,3982.3,2.51311166]
[1760568037535,0.1012,3982.4,3982.3,0.002]
[1760568038459,22.829093,3982.4,3982.3,0.002]
[1760568038609,31.6542635,3982.4,3982.3,0.002]
[1760568038815,33.3822635,3982.4,3982.3,0.002]
[1760568039014,33.51071917,3982.4,3982.3,0.002]
[1760568039433,30.33035354,3982.4,3982.3,0.002]
[1760568040144,39.98341429,3982.4,3982.3,0.002]
[1760568044672,30.33035354,3982.4,3982.3,0.002]
[1760568045657,29.69675354,3982.4,3982.3,0.002]
[1760568045863,30.33035354,3982.4,3982.3,0.002]
[1760568047759,30.23015354,3982.4,3982.3,0.002]
[1760568047961,30.33035354,3982.4,3982.3,0.002]
[1760568048573,7.60246054,3982.4,3982.3,0.002]
[1760568048882,27.83019728,3982.4,3982.3,0.002]
[1760568049764,37.83019728,3982.4,3982.3,0.002]
[1760568049967,27.83019728,3982.4,3982.3,0.002]
[1760568050956,27.72999728,3982.4,3982.3,0.002]
[1760568051768,43.88325803,3982.4,3982.3,0.002]
[1760568051967,46.38341429,3982.4,3982.3,0.002]
[1760568052489,36.73035354,3982.4,3982.3,0.002]
[1760568057594,36.63015354,3982.4,3982.3,0.002]
[1760568057969,34.72866054,3982.4,3982.3,0.002]
[1760568058385,35.36226054,3982.4,3982.3,0.002]
[1760568058585,34.72866054,3982.4,3982.3,0.002]
[1760568058786,2.61090824,3983.0,3982.3,0.002]
[1760568058787,0.28023996,3983.9,3982.3,0.002]
[1760568058964,0.1408,3985.6,3982.8,9.65306075]
[1760568059163,0.1408,3985.6,3982.9,2.1665]
[1760568059164,22.727893,3985.5,3982.9,2.1665]
[1760568059363,22.727893,3985.5,3983.0,0.4385]
[1760568059589,22.727893,3984.6,3983.0,0.4385]
[1760568059792,10.0,3985.3,3983.7,2.51021187]
[1760568059793,22.727893,3984.4,3983.7,2.51021187]
[1760568059998,2.513,3984.4,3984.3,0.2276]
[1760568060201,22.727893,3985.0,3984.3,0.6661]
[1760568060397,22.727893,3985.1,3984.3,0.2276]
[1760568060703,22.727893,3985.3,3984.4,0.4385]
[1760568060863,22.727893,3985.1,3984.4,0.4385]
[1760568061199,22.727893,3984.7,3984.5,2.5097186]
[1760568061405,22.727893,3984.7,3984.6,0.4385]
[1760568061608,22.727893,3985.1,3984.6,0.4385]
[1760568061767,1.728,3985.0,3984.6,0.4385]
[1760568062103,22.727893,3984.7,3984.6,0.4385]
[1760568062469,24.455893,3984.7,3984.6,0.4385]
[1760568062810,0.1248,3984.6,3984.5,2.50972518]
[1760568063011,17.705,3984.8,3984.5,0.4385]
[1760568063167,17.705,3984.8,3984.3,0.2276]
[1760568063168,0.1248,3984.5,3984.4,2.5097861]
[1760568063369,6.637,3984.7,3984.6,2.50966219]
[1760568063598,0.1248,3984.6,3984.4,2.5097293]
[1760568063772,0.1248,3984.4,3984.3,2.73745116]
[1760568064402,0.1248,3984.4,3984.3,3.17595116]
[1760568070821,0.1248,3984.4,3984.3,0.2276]
[1760568070979,0.1248,3984.4,3984.3,2.73745116]
[1760568072097,0.1248,3984.4,3984.3,3.17595116]
[1760568073429,0.001,3984.4,3984.3,3.17595116]
[1760568073586,0.001,3984.4,3984.3,3.74454208]
[1760568077529,0.001,3984.4,3984.3,1.23469092]
[1760568077697,0.001,3984.4,3984.3,3.17595116]
[1760568079604,0.001,3984.4,3983.7,0.2276]
[1760568079803,2.50997742,3984.1,3983.3,0.2276]
[1760568080020,22.727893,3984.1,3983.3,2.51047829]
[1760568080222,24.455893,3984.0,3983.2,2.51052733]
[1760568080526,22.727893,3983.7,3983.3,2.51047407]
[1760568080737,22.727893,3983.7,3983.2,2.5105288]
[1760568081142,22.727893,3983.7,3983.1,2.510603]
[1760568081308,22.727893,3983.7,3983.4,2.51039336]
[1760568081723,22.727893,3983.7,3983.3,2.5104669]
[1760568081947,22.727893,3983.7,3983.4,2.51039829]
[1760568082147,19.185,3983.7,3983.5,2.51033202]
[1760568082462,19.185,3983.7,3983.3,2.51047035]
[1760568082463,22.727893,3983.8,3983.3,2.51042975]
[1760568082742,22.727893,3983.8,3983.4,2.51041314]
[1760568083343,22.727893,3983.8,3983.3,2.51047365]
[1760568083638,0.1248,3983.2,3983.1,2.51060545]
[1760568083845,22.727893,3983.8,3983.5,2.51035024]
[1760568084063,22.727893,3983.8,3983.4,2.51041072]
[1760568084821,22.828193,3983.7,3982.4,2.51104861]
[1760568085028,22.828193,3983.7,3982.1,0.2276]
[1760568085029,0.6336,3983.3,3982.1,0.658]
[1760568085237,22.727893,3983.0,3982.4,2.5110328]
[1760568085567,2.5105634,3983.2,3982.6,2.51092229]
[1760568085568,22.727893,3983.2,3982.6,2.51092229]
[1760568085732,15.595,3983.0,3982.6,2.51092229]
[1760568086315,15.595,3983.0,3982.2,0.4304]
[1760568086516,1.728,3983.1,3982.9,2.51071482]
[1760568086721,22.727893,3983.0,3982.4,0.4304]
[1760568086921,17.982,3983.0,3982.9,2.51073338]
[1760568087268,13.679,3983.0,3982.9,2.51073338]
[1760568088212,1.728,3982.9,3982.8,2.51079642]
[1760568088488,1.728,3982.9,3982.3,0.002]
[1760568088489,1.728,3982.7,3982.3,0.002]
[1760568088692,22.727893,3982.6,3982.3,0.002]
[1760568089064,14.067,3982.6,3982.3,0.002]
[1760568089265,1.728,3982.9,3982.3,0.002]
[1760568089478,1.728,3982.5,3982.3,0.002]
[1760568089683,22.727893,3982.8,3982.3,0.002]
[1760568089881,1.728,3982.7,3982.3,2.51309931]
[1760568090080,1.728,3982.5,3982.3,2.51309931]
[1760568090678,11.728,3982.6,3982.3,0.002]
[1760568090882,1.728,3982.7,3982.3,0.002]
[1760568091195,26.96694161,3982.4,3982.3,0.002]
[1760568091396,24.455893,3982.4,3982.3,0.002]
[1760568091586,23.792,3982.4,3982.3,0.002]
[1760568092092,4.33934861,3982.4,3982.3,0.002]
[1760568092291,37.06724161,3982.4,3982.3,0.002]
[1760568092596,29.26436232,3982.4,3982.3,0.002]
[1760568092757,26.75331371,3982.4,3982.3,0.002]
[1760568093356,29.38991877,3982.4,3982.3,0.002]
[1760568094101,26.77857016,3982.4,3982.3,0.002]
[1760568094874,6.281,3982.4,3982.3,0.002]
[1760568095158,1.728,3982.4,3982.3,0.002]
[1760568095411,7.8,3982.4,3982.3,0.002]
[1760568096206,24.455893,3982.4,3982.3,0.002]
[1760568097001,26.96694161,3982.4,3982.3,0.002]
[1760568097314,29.46709787,3982.4,3982.3,0.002]
[1760568097699,26.95604926,3982.4,3982.3,0.002]
[1760568098302,24.455893,3982.4,3982.3,0.002]
[1760568099823,17.156,3982.4,3982.3,0.002]
[1760568100004,16.026,3982.4,3982.3,0.002]
[1760568100393,17.473,3982.4,3982.3,0.002]
[1760568101423,24.455893,3982.4,3982.3,0.002]
[1760568102726,22.554,3982.4,3982.3,0.002]
[1760568102925,6.4,3982.6,3982.3,2.94351166]
[1760568103107,1.728,3982.5,3982.4,3.25863978]
[1760568103328,1.728,3982.5,3982.4,2.82823978]
[1760568103712,0.1248,3982.4,3982.3,2.51310062]
[1760568104217,0.1248,3982.4,3982.3,2.94350062]
[1760568105212,0.1248,3982.4,3982.3,0.4324]
[1760568105413,0.1248,3982.4,3982.3,2.51311166]
[1760568105829,0.1248,3982.4,3982.3,2.94351166]
[1760568106349,0.1248,3982.4,3982.3,0.4324]
[1760568106554,25.281173,3982.4,3982.3,0.002]
[1760568108327,10.0,3983.1,3982.5,2.51098556]
[1760568108531,1.728,3983.0,3982.5,2.51098393]
[1760568108761,1.728,3982.8,3982.6,2.94130432]
[1760568108921,17.377,3982.7,3982.6,2.94130432]
[1760568109116,7.377,3982.7,3982.6,2.94130432]
[1760568109322,1.728,3982.7,3982.6,0.4304]
[1760568109524,1.728,3982.7,3982.6,2.94132251]
[1760568110933,1.728,3982.7,3982.6,0.4304]
[1760568111133,1.728,3982.7,3982.3,0.002]
[1760568111134,22.727893,3982.4,3982.3,0.002]
[1760568111445,20.07,3982.4,3982.3,0.002]
[1760568112159,24.455893,3982.4,3982.3,0.002]
[1760568112459,3.768,3982.4,3982.3,0.002]
[1760568113122,1.728,3982.4,3982.3,0.002]
[1760568113363,4.274,3982.4,3982.3,0.002]
[1760568114156,24.455893,3982.4,3982.3,0.002]
[1760568115161,1.728,3982.4,3982.3,0.002]
[1760568115322,16.86,3982.4,3982.3,0.002]
[1760568115950,7.765,3982.4,3982.3,0.002]
[1760568116356,6.888,3982.4,3982.3,0.002]
[1760568116650,6.498,3982.4,3982.3,0.002]
[1760568117363,24.455893,3982.4,3982.3,0.002]
[1760568121393,15.056,3982.4,3982.3,0.002]
[1760568121994,14.666,3982.4,3982.3,0.002]
[1760568122335,24.455893,3982.4,3982.3,0.002]
[1760568123235,26.96694161,3982.4,3982.3,0.002]
[1760568123531,26.95604926,3982.4,3982.3,0.002]
[1760568123987,24.455893,3982.4,3982.3,0.002]
[1760568125838,23.113,3982.4,3982.3,0.002]
[1760568126523,24.455893,3982.4,3982.3,0.002]
[1760568126924,18.739,3982.4,3982.3,0.002]
[1760568127121,6.4,3982.7,3982.3,0.002]
[1760568127122,6.4,3982.7,3982.3,0.4369]
[1760568127319,6.4,3982.7,3982.6,2.51092251]
[1760568127320,8.128,3982.7,3982.6,2.51092251]
[1760568127523,15.653,3982.7,3982.6,2.94582251]
[1760568128216,6.4,3982.7,3982.6,3.49170852]
[1760568129621,0.001,3982.8,3982.7,2.51085946]
[1760568129820,0.001,3982.8,3982.7,2.94575946]
[1760568130020,0.001,3982.8,3982.7,2.97086805]
[1760568130226,0.001,3982.8,3982.7,6.76139082]
[1760568130440,0.001,3982.8,3982.7,7.99811075]
[1760568130638,0.001,3983.2,3983.1,2.51060731]
[1760568130936,0.001,3983.6,3983.5,2.51035521]
[1760568131309,0.001,3983.6,3983.5,2.94525521]
[1760568132044,0.001,3983.6,3983.1,0.2275]
[1760568132344,24.455893,3983.4,3982.2,0.002]
[1760568132528,4.23873772,3982.9,3982.2,0.002]
[1760568132902,22.727893,3982.8,3982.2,0.002]
[1760568133106,0.099,3982.9,3982.2,0.002]
[1760568133307,2.51103066,3982.5,3982.2,0.002]
[1760568133609,27.60054161,3982.4,3982.2,0.002]
[1760568133919,30.19969787,3982.4,3982.2,0.002]
[1760568139656,27.60079385,3982.0,3981.9,0.002]
[1760568140010,27.69979385,3982.0,3981.9,0.002]
[1760568141641,37.69979385,3982.0,3981.9,0.002]
[1760568141841,27.69979385,3982.0,3981.9,0.002]
[1760568142062,29.25091362,3982.0,3981.9,0.002]
[1760568142641,39.25091362,3982.0,3981.9,0.002]
[1760568142841,29.25091362,3982.0,3981.9,0.002]
[1760568146444,29.15191362,3982.0,3981.9,0.002]
[1760568146842,29.25091362,3982.0,3981.9,0.002]
[1760568147044,29.15191362,3982.0,3981.9,0.002]
[1760568147690,29.25091362,3982.0,3981.9,0.002]
[1760568147986,29.15191362,3982.0,3981.9,0.002]
[1760568148147,29.25091362,3982.0,3981.9,0.002]
[1760568148551,29.25091362,3982.0,3981.6,1e-08]
[1760568148552,3.14509006,3981.7,3981.6,1e-08]
[1760568148860,37.25878996,3981.7,3981.6,1e-08]
[1760568149198,37.35818996,3981.7,3981.6,1e-08]
[1760568149768,37.35818996,3981.7,3981.3,1e-08]
[1760568149769,25.8731723,3981.4,3981.3,1e-08]
[1760568149967,29.15229207,3981.4,3981.3,1e-08]
[1760568150288,29.25169207,3981.4,3981.3,1e-08]
[1760568150687,6.52379907,3981.4,3981.3,1e-08]
[1760568150849,29.25169207,3981.4,3981.3,1e-08]
[1760568153594,25.87336157,3981.1,3980.2,0.4665]
[1760568153770,27.60136157,3981.1,3980.2,0.4665]
[1760568154487,27.70076157,3981.1,3980.0,0.4665]
[1760568154983,27.70076157,3981.1,3979.3,2.51298486]
[1760568154984,27.60136157,3981.1,3980.3,0.4665]
[1760568157087,27.72935702,3981.1,3980.3,0.4665]
[1760568157258,29.28047679,3981.1,3980.3,0.4665]
[1760568158700,29.28047679,3981.1,3979.2,2.51304726]
[1760568158882,29.28047679,3981.1,3980.7,0.4665]
[1760568159489,29.28047679,3981.1,3980.3,0.4665]
[1760568159991,29.28047679,3981.1,3979.8,0.4665]
[1760568160165,29.37987679,3981.1,3979.8,0.4665]
[1760568160360,29.37987679,3981.1,3979.2,2.51304494]
[1760568160587,29.37987679,3981.1,3980.1,0.4665]
[1760568160976,39.37987679,3981.1,3980.1,0.4665]
[1760568161164,29.37987679,3981.1,3980.1,0.4665]
[1760568161861,6.65198379,3981.1,3980.1,0.4665]
[1760568162057,39.37987679,3981.1,3980.1,0.4665]
[1760568162366,29.37987679,3981.1,3980.1,0.4665]
[1760568162987,29.37987679,3981.1,3980.2,0.002]
[1760568163564,29.28047679,3981.1,3980.2,0.002]
[1760568163767,29.28047679,3981.1,3980.5,0.4665]
[1760568164075,29.28047679,3981.1,3980.2,0.002]
[1760568164272,29.28047679,3981.1,3980.8,0.4685]
[1760568164962,29.28047679,3981.1,3980.8,0.002]
[1760568164963,39.34934744,3981.1,3980.8,0.002]
[1760568165179,45.43768369,3981.1,3980.8,0.002]
[1760568165867,45.33828369,3981.1,3980.8,0.002]
[1760568166170,38.03788842,3981.0,3980.9,1e-08]
[1760568166378,4.87397343,3980.3,3980.2,0.002]
[1760568166599,37.25967333,3980.3,3980.2,0.002]
[1760568166787,37.35937333,3980.3,3980.2,0.002]
[1760568166983,38.9104931,3980.3,3980.2,0.002]
[1760568167385,38.8107931,3980.3,3980.2,0.002]
[1760568167581,29.1529862,3980.3,3980.2,0.4685]
[1760568168096,29.1529862,3980.3,3980.2,0.002]
[1760568168303,38.8107931,3980.3,3980.2,0.002]
[1760568168597,38.9106931,3980.3,3980.2,0.002]
[1760568169373,39.22235685,3980.3,3980.2,0.002]
[1760568170195,16.49446385,3980.3,3980.2,0.002]
[1760568170398,39.22235685,3980.3,3980.2,0.002]
[1760568170796,38.8107931,3980.3,3980.2,0.002]
[1760568171383,38.9106931,3980.3,3980.2,0.002]
[1760568172308,38.8107931,3980.3,3980.2,0.002]
[1760568172983,45.2107931,3980.3,3980.2,0.002]
[1760568173303,45.52245685,3980.3,3980.2,0.002]
[1760568173475,45.2107931,3980.3,3980.2,0.002]
[1760568174595,45.62235685,3980.3,3980.2,0.002]
[1760568176826,45.52245685,3980.3,3980.2,0.002]
[1760568176975,45.62235685,3980.3,3980.2,0.002]
[1760568179403,39.05212395,3980.3,3980.2,0.002]
[1760568179591,27.60218207,3979.8,3979.7,0.4416]
[1760568179799,30.10233833,3979.8,3979.7,0.4416]
[1760568180410,3.14673111,3979.1,3979.0,0.2275]
[1760568180611,27.60262411,3979.1,3979.0,0.2275]
[1760568180935,37.19009811,3979.1,3979.0,0.2275]
[1760568181112,14.46220511,3979.1,3979.0,0.6691]
[1760568181293,37.19009811,3979.1,3979.0,0.6691]
[1760568181494,20.48,3979.1,3979.0,0.6691]
[1760568181692,15.071,3979.1,3979.0,0.6691]
[1760568181902,5.925,3979.1,3979.0,3.50053126]
[1760568182088,22.727893,3980.2,3979.0,0.987337]
[1760568182298,4.24043656,3980.2,3980.1,0.2324]
[1760568182491,22.727893,3980.2,3980.1,0.674]
[1760568182693,17.699,3980.2,3980.1,0.674]
[1760568183189,9.427,3980.2,3980.1,0.674]
[1760568183396,24.455893,3980.2,3980.1,0.674]
[1760568183608,26.96832956,3980.2,3980.1,0.674]
[1760568184724,27.60192956,3980.2,3980.1,0.674]
[1760568184918,30.10208582,3980.2,3980.1,0.674]
[1760568185102,27.60192956,3980.2,3980.1,0.674]
[1760568185939,33.52692956,3980.2,3980.1,0.674]
[1760568187392,30.380893,3980.2,3980.1,0.674]
[1760568187596,24.935,3980.2,3980.1,0.674]
[1760568188427,28.536,3980.2,3980.1,0.674]
[1760568188623,31.04843656,3980.2,3980.1,0.674]
[1760568189434,32.80632956,3980.2,3980.1,0.674]
[1760568192547,10.07843656,3980.2,3980.1,0.674]
[1760568192832,32.80632956,3980.2,3980.1,0.674]
[1760568197039,26.96870835,3979.6,3979.4,0.4416]
[1760568197250,0.1256,3979.4,3979.0,0.2275]
[1760568197451,27.60256095,3979.2,3979.1,0.002]
[1760568197606,29.15368072,3979.2,3979.1,0.002]
[1760568198440,27.60256095,3979.2,3979.1,0.002]
[1760568198640,25.089493,3979.2,3979.1,0.002]
[1760568198847,11.1986,3979.2,3979.1,0.676]
[1760568199238,25.68866795,3979.2,3979.1,0.676]
[1760568199445,18.54966795,3979.2,3979.1,0.676]
[1760568200329,19.71366795,3979.2,3979.1,0.676]
[1760568201249,23.4536,3979.2,3979.1,0.002]
[1760568201428,25.96666795,3979.2,3979.1,0.6506]
[1760568201629,25.96666795,3979.2,3979.1,0.002]
[1760568202241,4.87466795,3979.2,3979.1,0.002]
[1760568202442,37.60256095,3979.2,3979.1,0.002]
[1760568202642,27.60256095,3979.2,3979.1,0.002]
[1760568204319,20.51066795,3979.2,3979.1,0.002]
[1760568204547,10.499,3979.2,3979.1,0.6506]
[1760568204851,4.093,3979.2,3979.1,0.6506]
[1760568205052,3.885,3979.2,3979.1,0.6506]
[1760568205424,6.111,3979.2,3979.1,0.6506]
[1760568205858,16.111,3979.2,3979.1,0.6506]
[1760568206429,24.455893,3979.2,3979.1,0.6506]
[1760568210060,16.892,3979.2,3979.1,0.6506]
[1760568210459,17.485,3979.2,3979.1,0.6506]
[1760568211264,16.408,3979.2,3979.1,0.6506]
[1760568211432,18.015,3979.2,3979.1,0.6506]
[1760568211833,15.119,3979.2,3979.1,0.6506]
[1760568212230,1.728,3979.2,3979.1,0.96699112]
[1760568212428,22.727893,3980.0,3979.2,2.51305562]
[1760568212644,10.829,3979.8,3979.3,0.4319]
[1760568212829,0.1256,3979.3,3979.1,0.53509112]
[1760568213028,10.829,3979.8,3979.2,2.82040377]
[1760568213228,1.728,3979.5,3979.2,2.82040377]
[1760568213456,1.728,3979.4,3979.3,0.4319]
[1760568213644,1.728,3979.8,3979.3,0.4319]
[1760568213843,7.772,3979.5,3979.4,0.4319]
[1760568215563,7.772,3979.5,3979.4,3.29194192]
[1760568215564,1.728,3979.5,3979.4,3.29194192]
[1760568215996,0.001,3980.2,3980.1,2.51249968]
[1760568216133,0.001,3980.2,3980.1,2.72919968]
[1760568216341,0.001,3980.2,3980.1,3.16109968]
[1760568216871,0.001,3980.2,3980.1,3.72846742]
[1760568222950,0.001,3980.2,3980.1,3.75359241]
[1760568223261,0.001,3980.2,3980.1,3.72846742]
[1760568225452,0.1256,3980.1,3980.0,2.51251791]
[1760568225681,0.001,3980.2,3980.1,2.51249968]
[1760568228382,0.1256,3980.1,3979.9,2.51260382]
[1760568228685,0.001,3980.2,3979.9,2.51260382]
[1760568229085,0.1256,3979.9,3979.8,2.51268907]
[1760568229283,0.099,3980.1,3979.5,2.94472178]
[1760568229284,0.099,3980.1,3979.9,2.51261937]
[1760568229483,0.001,3980.2,3979.9,2.51261937]
[1760568229852,0.1256,3979.9,3979.5,0.4319]
[1760568230084,0.001,3980.2,3979.9,2.51257102]
[1760568230780,0.1256,3979.9,3979.8,2.51268907]
[1760568231015,0.001,3980.2,3980.1,2.51249968]
[1760568231186,0.001,3980.2,3980.1,2.74849968]
[1760568231379,0.001,3980.2,3980.1,3.18639968]
[1760568231588,0.001,3980.2,3980.1,3.75630224]
[1760568233252,0.001,3980.2,3980.1,3.78142723]
[1760568233654,0.001,3980.2,3980.1,3.75630224]
[1760568237388,0.001,3980.2,3980.1,3.78142723]
[1760568239674,0.001,3980.2,3980.1,7.705511]
[1760568239874,0.001,3980.2,3980.1,7.80616385]
[1760568240071,0.001,3980.2,3980.1,3.98255509]
[1760568240291,0.001,3980.2,3980.1,3.85695509]
[1760568240480,0.001,3980.2,3980.1,5.63140224]
[1760568240684,0.1266,3980.2,3980.1,5.63140224]
[1760568241164,0.1266,3980.2,3980.1,3.08440224]
[1760568242398,0.1266,3980.2,3980.1,3.53260224]
[1760568242913,0.1266,3980.2,3980.1,3.75720224]
[1760568244298,0.1266,3980.2,3980.1,3.08440224]
[1760568245813,0.1266,3980.2,3980.1,3.53260224]
[1760568246025,0.1266,3980.2,3980.1,3.75720224]
[1760568246627,0.1266,3980.2,3980.1,3.08440224]
[1760568247801,0.1266,3980.2,3980.1,3.53260224]
[1760568248006,0.1266,3980.2,3980.1,3.75720224]
[1760568248402,0.001,3980.2,3980.1,7.580811]
[1760568248819,0.001,3980.2,3980.1,7.773211]
[1760568249786,0.001,3980.2,3980.1,3.94960224]
[1760568250130,0.1266,3980.2,3980.1,5.63040224]
[1760568253636,0.1266,3980.2,3980.1,3.08440224]
[1760568257047,0.2283,3980.2,3980.1,0.002]
[1760568257197,22.956193,3980.2,3980.1,0.002]
[1760568257516,2.5453,3980.2,3980.1,0.002]
[1760568257694,0.2283,3980.2,3980.1,0.002]
[1760568258095,0.1266,3980.2,3980.1,0.002]
[1760568258820,0.1266,3980.2,3980.1,2.51449968]
[1760568259026,0.001,3980.2,3980.1,3.5353552]
[1760568260026,0.001,3980.2,3980.1,3.0871552]
[1760568260201,0.001,3980.2,3980.1,2.51449968]
[1760568261008,0.001,3980.2,3980.1,0.002]
[1760568261229,22.830593,3980.2,3980.1,0.002]
[1760568261427,10.4677,3980.2,3980.1,0.002]
[1760568266549,12.98013656,3980.2,3980.1,0.002]
[1760568266748,12.01693961,3980.2,3980.1,0.002]
[1760568270334,35.17886917,3980.2,3980.1,0.002]
[1760568281587,12.45097617,3980.2,3980.1,0.002]
[1760568281766,35.17886917,3980.2,3980.1,0.002]
[1760568283569,29.25386917,3980.2,3980.1,0.002]
[1760568283989,24.456893,3980.2,3980.1,0.002]
[1760568284285,16.355,3980.2,3980.1,0.002]
[1760568284459,18.86743656,3980.2,3980.1,0.002]
[1760568284660,26.96932956,3980.2,3980.1,0.002]
[1760568285186,1.729,3980.2,3980.1,0.6566]
[1760568285387,3.576,3980.2,3980.1,0.97352154]
[1760568285591,3.576,3980.2,3980.1,0.6566]
[1760568285797,2.426,3980.2,3980.1,3.92425455]
[1760568286293,2.426,3980.2,3980.1,1.41175487]
[1760568289493,30.25810066,3980.2,3980.1,0.002]
[1760568289694,32.75825692,3980.2,3980.1,0.002]
[1760568292969,32.65565692,3980.2,3980.1,0.002]
[1760568295205,29.46948582,3980.2,3980.1,0.002]
[1760568297573,6.74159282,3980.2,3980.1,0.002]
[1760568297774,29.46948582,3980.2,3980.1,0.002]
[1760568301800,29.57208582,3980.2,3980.1,0.002]
[1760568302624,29.46948582,3980.2,3980.1,0.002]
[1760568303497,13.699,3980.2,3980.1,0.002]
[1760568303731,0.001,3980.2,3980.1,0.686]
[1760568304032,3.889,3980.2,3980.1,0.686]
[1760568304493,6.40143656,3980.2,3980.1,0.686]
[1760568304823,3.889,3980.2,3980.1,0.686]
[1760568306202,6.40143656,3980.2,3980.1,0.002]
[1760568306812,8.12943656,3980.2,3980.1,0.002]
[1760568308022,5.617,3980.2,3980.1,0.002]
[1760568308423,5.617,3980.2,3980.1,0.686]
[1760568309702,8.12943656,3980.2,3980.1,0.686]
[1760568309903,8.12943656,3980.2,3980.1,0.4529]
[1760568310129,5.617,3980.2,3980.1,0.002]
[1760568310524,5.617,3980.2,3980.1,0.4529]
[1760568311961,8.12943656,3980.2,3980.1,0.002]
[1760568312253,32.75645692,3980.2,3980.1,0.002]
[1760568312439,33.39005692,3980.2,3980.1,0.002]
[1760568312616,30.20388582,3980.2,3980.1,0.002]
[1760568318253,36.12888582,3980.2,3980.1,0.002]
[1760568318550,36.02808582,3980.2,3980.1,0.002]
[1760568319068,35.39448582,3980.2,3980.1,0.002]
[1760568319267,35.39448582,3980.2,3980.1,0.686]
[1760568319268,24.87143656,3980.2,3980.1,0.686]